fUSD/lending_fUSD_20260528
["ID","MTS","AMOUNT","RATE_DAILY","PERIOD"]
[423236207,1779970232000,-420.0,0.0001355,2]
[423236206,1779970232000,-535.62093856,0.00013502,2]
[423236209,1779970232000,-2500.0,0.00013631,2]
[423236208,1779970232000,-5000.0,0.00013631,2]
[423236211,1779970232000,-3404.02343443,0.00013633,2]
[423236205,1779970232000,-174.27757291,0.00013502,2]
[423236210,1779970232000,-1603.98556145,0.00013633,2]
[423236212,1779970232000,-166.66,0.00013699,2]
[423236213,1779970232000,-200.0,0.00013699,2]
[423236214,1779970232000,-202.36212542,0.00013699,2]
[423236216,1779970232000,-215.50460005,0.00013706,2]
[423236215,1779970232000,-197.47646253,0.00013701,2]
[423236218,1779970232000,-1455.64,0.0001373,2]
[423236219,1779970232000,-1455.64,0.0001373,2]
[423236221,1779970232000,-500.0,0.0001373,2]
[423236249,1779970232000,-300.0,0.00014276,2]
[423236220,1779970232000,-500.0,0.0001373,2]
[423236223,1779970232000,-500.0,0.0001373,2]
[423236222,1779970232000,-500.0,0.0001373,2]
[423236226,1779970232000,-500.0,0.0001373,2]
[423236232,1779970232000,-200.0,0.000139,5]
[423236231,1779970232000,-166.66,0.00013836,2]
[423236253,1779970232000,-162.25,0.0001429,2]
[423236217,1779970232000,-1455.64,0.0001373,2]
[423236257,1779970232000,-500.0,0.00014452,2]
[423236279,1779970232000,-2000.0,0.00014714,2]
[423236282,1779970232000,-500.0,0.00014719,2]
[423236280,1779970232000,-1455.64,0.00014719,2]
[423236286,1779970232000,-500.0,0.00014899,2]
[423236285,1779970232000,-900.0,0.000148,5]
[423236287,1779970232000,-500.0,0.00014899,2]
[423236297,1779970232000,-500.0,0.00014899,2]
[423236296,1779970232000,-500.0,0.00014899,2]
[423236289,1779970232000,-500.0,0.00014899,2]
[423236288,1779970232000,-500.0,0.00014899,2]
[423236291,1779970232000,-338.18944025,0.00014899,2]
[423236290,1779970232000,-500.0,0.00014899,2]
[423236295,1779970232000,-500.0,0.00014899,2]
[423236294,1779970232000,-500.0,0.00014899,2]
[423236292,1779970232000,-500.0,0.00014899,2]
[423236293,1779970232000,-500.0,0.00014899,2]
[423236301,1779970232000,-500.0,0.00014899,2]
[423236300,1779970232000,-500.0,0.00014899,2]
[423236302,1779970232000,-500.0,0.00014899,2]
[423236298,1779970232000,-456.79764672,0.00014899,2]
[423236252,1779970232000,-1680.0,0.00014276,2]
[423236275,1779970232000,-500.0,0.00014662,2]
[423236281,1779970232000,-500.0,0.00014719,2]
[423236299,1779970232000,-500.0,0.00014899,2]
[423236278,1779970232000,-700.0,0.000147,5]
[423236276,1779970232000,-2000.0,0.00014678,2]
[423236255,1779970232000,-166.66,0.00014384,2]
[423236256,1779970232000,-344.78,0.00014387,2]
[423236259,1779970232000,-500.0,0.00014452,2]
[423236262,1779970232000,-5463.66,0.00014504,2]
[423236268,1779970232000,-3404.02343442,0.00014618,2]
[423236267,1779970232000,-400.0,0.000146,5]
[423236261,1779970232000,-3404.02343442,0.00014478,2]
[423236269,1779970232000,-500.0,0.00014662,2]
[423236265,1779970232000,-150.99,0.00014504,2]
[423236264,1779970232000,-299.99,0.00014504,2]
[423236260,1779970232000,-500.0,0.00014452,2]
[423236273,1779970232000,-500.0,0.00014662,2]
[423236266,1779970232000,-9999.99,0.00014504,2]
[423236274,1779970232000,-500.0,0.00014662,2]
[423236284,1779970232000,-3404.02343442,0.00014759,2]
[423236277,1779970232000,-1028.49,0.00014678,2]
[423236251,1779970232000,-300.0,0.00014276,2]
[423236272,1779970232000,-500.0,0.00014662,2]
[423236283,1779970232000,-1261.87,0.0001472,2]
[423236271,1779970232000,-502.71616997,0.00014662,2]
[423236263,1779970232000,-9999.99,0.00014504,2]
[423236270,1779970232000,-500.0,0.00014662,2]
[423236318,1779970233000,-500.0,0.00014994,2]
[423236324,1779970233000,-500.0,0.00014998,2]
[423236326,1779970233000,-69320.2885474,0.00014998,2]
[423236325,1779970233000,-500.0,0.00014998,2]
[423236333,1779970233000,-500.0,0.00014999,2]
[423236328,1779970233000,-500.0,0.00014999,2]
[423236332,1779970233000,-500.0,0.00014999,2]
[423236331,1779970233000,-500.0,0.00014999,2]
[423236330,1779970233000,-500.0,0.00014999,2]
[423236329,1779970233000,-500.0,0.00014999,2]
[423236334,1779970233000,-500.0,0.00014999,2]
[423236327,1779970233000,-500.0,0.00014999,2]
[423236344,1779970233000,-1455.64,0.00014999,2]
[423236345,1779970233000,-1455.64,0.00014999,2]
[423236335,1779970233000,-500.0,0.00014999,2]
[423236319,1779970233000,-500.0,0.00014994,2]
[423236339,1779970233000,-500.0,0.00014999,2]
[423236336,1779970233000,-500.0,0.00014999,2]
[423236312,1779970233000,-412.23791468,0.00014973,2]
[423236321,1779970233000,-500.0,0.00014994,2]
[423236341,1779970233000,-500.0,0.00014999,2]
[423236309,1779970233000,-1100.0,0.000149,5]
[423236304,1779970233000,-500.0,0.00014899,2]
[423236310,1779970233000,-3404.02343442,0.000149,2]
[423236306,1779970233000,-500.0,0.00014899,2]
[423236303,1779970233000,-500.0,0.00014899,2]
[423236305,1779970233000,-500.0,0.00014899,2]
[423236307,1779970233000,-500.0,0.00014899,2]
[423236308,1779970233000,-157.8954348,0.000149,2]
[423236323,1779970233000,-500.0,0.00014998,2]
[423236322,1779970233000,-500.0,0.00014998,2]
[423236311,1779970233000,-2923.01472248,0.000149,2]
[423236313,1779970233000,-6272.0450703,0.00014987,2]
[423236316,1779970233000,-398.26046862,0.00014994,2]
[423236317,1779970233000,-500.0,0.00014994,2]
[423236314,1779970233000,-242.2493141,0.0001499,2]
[423236315,1779970233000,-1043.7075276,0.00014994,2]
[423236320,1779970233000,-500.0,0.00014994,2]
[423236338,1779970233000,-500.0,0.00014999,2]
[423236361,1779970233000,-1455.64,0.00014999,2]
[423236340,1779970233000,-500.0,0.00014999,2]
[423236364,1779970233000,-500.0,0.00014999,2]
[423236366,1779970233000,-500.0,0.00014999,2]
[423236369,1779970233000,-500.0,0.00014999,2]
[423236368,1779970233000,-500.0,0.00014999,2]
[423236371,1779970233000,-290.4,0.00014999,2]
[423236372,1779970233000,-187.06476887,0.00014999,2]
[423236376,1779970233000,-57395.73594267,0.00015,2]
[423236370,1779970233000,-500.0,0.00014999,2]
[423236374,1779970233000,-80664.3827655,0.00015,2]
[423236373,1779970233000,-405941.52701923,0.00015,2]
[423236375,1779970233000,-29338.11510798,0.00015,2]
[423236380,1779970233000,-655.85593076,0.00015,2]
[423236377,1779970233000,-257.8752,0.00015,2]
[423236379,1779970233000,-252.80804943,0.00015,2]
[423236378,1779970233000,-2841.88054873,0.00015,2]
[423236382,1779970233000,-1924.07895351,0.00015,2]
[423236381,1779970233000,-500.0,0.00014452,2]
[423236342,1779970233000,-510.00564185,0.00014999,2]
[423236362,1779970233000,-1455.74950274,0.00014999,2]
[423236367,1779970233000,-500.0,0.00014999,2]
[423236360,1779970233000,-1455.64,0.00014999,2]
[423236337,1779970233000,-500.0,0.00014999,2]
[423236343,1779970233000,-1455.64,0.00014999,2]
[423236346,1779970233000,-1455.64,0.00014999,2]
[423236356,1779970233000,-1455.64,0.00014999,2]
[423236355,1779970233000,-1455.64,0.00014999,2]
[423236347,1779970233000,-1455.64,0.00014999,2]
[423236363,1779970233000,-505.94594791,0.00014999,2]
[423236350,1779970233000,-1455.64,0.00014999,2]
[423236354,1779970233000,-1455.64,0.00014999,2]
[423236348,1779970233000,-1455.64,0.00014999,2]
[423236351,1779970233000,-1455.64,0.00014999,2]
[423236352,1779970233000,-1455.64,0.00014999,2]
[423236353,1779970233000,-1455.64,0.00014999,2]
[423236357,1779970233000,-1455.64,0.00014999,2]
[423236359,1779970233000,-1455.64,0.00014999,2]
[423236358,1779970233000,-1455.64,0.00014999,2]
[423236365,1779970233000,-500.0,0.00014999,2]
[423236349,1779970233000,-1455.64,0.00014999,2]
[423236391,1779970237000,-3328762.16525926,0.00015,2]
[423236383,1779970237000,-500.0,0.00014452,2]
[423236390,1779970237000,-150.0,0.00014452,2]
[423236387,1779970237000,-500.0,0.00014452,2]
[423236385,1779970237000,-98.60028734,0.00014452,2]
[423236384,1779970237000,-401.39971266,0.00014452,2]
[423236388,1779970237000,-500.0,0.00014452,2]
[423236389,1779970237000,-537.1808123,0.00014452,2]
[423236386,1779970237000,-500.0,0.00014452,2]
[423236393,1779970238000,-379.70747073,0.00015,2]
[423236392,1779970238000,-2393.94011366,0.00015,2]
[423236418,1779970240000,-433.0,0.00015393,2]
[423236421,1779970240000,-162.1,0.00015695,2]
[423236422,1779970240000,-2351.0,0.00015703,2]
[423236431,1779970240000,-4446.39275178,0.000161,2]
[423236426,1779970240000,-300.0,0.00016,2]
[423236425,1779970240000,-4446.39275178,0.000159,2]
[423236419,1779970240000,-4446.39275178,0.000154,2]
[423236424,1779970240000,-4446.39275178,0.000158,2]
[423236427,1779970240000,-150.0,0.00016,2]
[423236423,1779970240000,-165.22,0.00015789,2]
[423236416,1779970240000,-157.35,0.000152,2]
[423236417,1779970240000,-4446.39275178,0.000153,2]
[423236413,1779970240000,-4446.39275178,0.000151,2]
[423236430,1779970240000,-3824.920678,0.0001601,2]
[423236414,1779970240000,-757.13,0.00015134,2]
[423236412,1779970240000,-900.0,0.00015068,2]
[423236415,1779970240000,-1544.0,0.00015169,2]
[423236410,1779970240000,-1177.3740336,0.00015,2]
[423236411,1779970240000,-330.0,0.00015014,3]
[423236409,1779970240000,-1309.1017991,0.00015,2]
[423236408,1779970240000,-151.55341745,0.00015,2]
[423236406,1779970240000,-465121.69841908,0.00015,2]
[423236420,1779970240000,-4446.39275178,0.000156,2]
[423236429,1779970240000,-227.21135545,0.00016,2]
[423236407,1779970240000,-245.61,0.00015,2]
[423236433,1779970240000,-9999.99,0.00016116,2]
[423236428,1779970240000,-2000.0,0.00016,2]
[423236455,1779970240000,-727.0,0.00016438,2]
[423236453,1779970240000,-727.0,0.00016438,2]
[423236454,1779970240000,-727.0,0.00016438,2]
[423236452,1779970240000,-727.0,0.00016438,2]
[423236450,1779970240000,-727.0,0.00016438,2]
[423236448,1779970240000,-727.0,0.00016438,2]
[423236447,1779970240000,-727.0,0.00016438,2]
[423236451,1779970240000,-727.0,0.00016438,2]
[423236445,1779970240000,-727.0,0.00016438,2]
[423236446,1779970240000,-727.0,0.00016438,2]
[423236449,1779970240000,-727.0,0.00016438,2]
[423236435,1779970240000,-227.21135545,0.000162,2]
[423236442,1779970240000,-666.0,0.00016438,2]
[423236437,1779970240000,-2000.0,0.00016348,2]
[423236443,1779970240000,-727.0,0.00016438,2]
[423236432,1779970240000,-227.21135545,0.000161,2]
[423236434,1779970240000,-4446.39275178,0.000162,2]
[423236444,1779970240000,-727.0,0.00016438,2]
[423236441,1779970240000,-1291.0,0.00016438,2]
[423236440,1779970240000,-3085.7,0.00016438,2]
[423236439,1779970240000,-793.47826507,0.00016438,2]
[423236438,1779970240000,-4446.39275178,0.000164,2]
[423236436,1779970240000,-181.23,0.00016348,2]
[423236496,1779970241000,-476.6,0.00018487,2]
[423236484,1779970241000,-350.0,0.00018,2]
[423236485,1779970241000,-315.226917,0.00018082,2]
[423236486,1779970241000,-1252.0,0.00018126,2]
[423236489,1779970241000,-176.23,0.00018356,2]
[423236487,1779970241000,-1150.93660727,0.000182,2]
[423236490,1779970241000,-1150.93660727,0.000184,2]
[423236488,1779970241000,-1642.68337267,0.000182,2]
[423236491,1779970241000,-1642.68337267,0.000184,2]
[423236494,1779970241000,-615.0,0.00018465,2]
[423236497,1779970241000,-1150.93660727,0.000185,2]
[423236502,1779970241000,-1642.68337267,0.000187,2]
[423236492,1779970241000,-3085.7,0.0001841,2]
[423236498,1779970241000,-1642.68337267,0.000185,2]
[423236495,1779970241000,-477.77,0.00018483,2]
[423236503,1779970241000,-665.35,0.0001872,2]
[423236504,1779970241000,-1590.57,0.0001872,2]
[423236499,1779970241000,-500.0,0.00018512,2]
[423236500,1779970241000,-665.47,0.000186,2]
[423236501,1779970241000,-1150.93660727,0.000187,2]
[423236509,1779970241000,-1150.93660727,0.000189,2]
[423236506,1779970241000,-476.6,0.00018729,2]
[423236482,1779970241000,-1150.93660727,0.00018,2]
[423236508,1779970241000,-1092.64,0.00018815,2]
[423236493,1779970241000,-615.0,0.00018465,2]
[423236479,1779970241000,-169.43,0.00017828,2]
[423236471,1779970241000,-168.1,0.00016712,2]
[423236478,1779970241000,-169.43,0.00017828,2]
[423236507,1779970241000,-476.6,0.00018811,2]
[423236456,1779970241000,-727.0,0.00016438,2]
[423236457,1779970241000,-727.0,0.00016438,2]
[423236458,1779970241000,-727.0,0.00016438,2]
[423236462,1779970241000,-727.0,0.00016438,2]
[423236464,1779970241000,-727.0,0.00016438,2]
[423236463,1779970241000,-727.0,0.00016438,2]
[423236469,1779970241000,-245.61,0.000167,2]
[423236461,1779970241000,-727.0,0.00016438,2]
[423236460,1779970241000,-727.0,0.00016438,2]
[423236459,1779970241000,-727.0,0.00016438,2]
[423236477,1779970241000,-169.43,0.00017828,2]
[423236465,1779970241000,-900.0,0.00016438,2]
[423236468,1779970241000,-179.92,0.00016619,2]
[423236467,1779970241000,-4446.39275178,0.000166,2]
[423236470,1779970241000,-736.0,0.000167,2]
[423236472,1779970241000,-1603.98556144,0.00017028,2]
[423236475,1779970241000,-329.49,0.00017517,2]
[423236473,1779970241000,-1291.0,0.0001726,2]
[423236474,1779970241000,-3292.0,0.00017274,2]
[423236481,1779970241000,-150.0,0.00018,2]
[423236480,1779970241000,-2000.0,0.00017983,2]
[423236483,1779970241000,-1642.68337267,0.00018,2]
[423236476,1779970241000,-157.35,0.00017733,2]
[423236466,1779970241000,-157.35,0.00016466,2]
[423236505,1779970241000,-10754.58,0.0001872,2]
[423236511,1779970241000,-200.0,0.000189,6]
[423236549,1779970241000,-500.0,0.00019178,2]
[423236537,1779970241000,-500.0,0.00019178,2]
[423236544,1779970241000,-500.0,0.00019178,2]
[423236543,1779970241000,-500.0,0.00019178,2]
[423236545,1779970241000,-500.0,0.00019178,2]
[423236547,1779970241000,-500.0,0.00019178,2]
[423236548,1779970241000,-500.0,0.00019178,2]
[423236550,1779970241000,-500.0,0.00019178,2]
[423236557,1779970241000,-500.0,0.00019178,2]
[423236546,1779970241000,-500.0,0.00019178,2]
[423236556,1779970241000,-500.0,0.00019178,2]
[423236551,1779970241000,-500.0,0.00019178,2]
[423236540,1779970241000,-500.0,0.00019178,2]
[423236552,1779970241000,-500.0,0.00019178,2]
[423236555,1779970241000,-500.0,0.00019178,2]
[423236554,1779970241000,-500.0,0.00019178,2]
[423236559,1779970241000,-500.0,0.00019178,2]
[423236558,1779970241000,-500.0,0.00019178,2]
[423236560,1779970241000,-500.0,0.00019178,2]
[423236562,1779970241000,-500.0,0.00019178,2]
[423236561,1779970241000,-500.0,0.00019178,2]
[423236564,1779970241000,-500.0,0.00019178,2]
[423236563,1779970241000,-500.0,0.00019178,2]
[423236510,1779970241000,-245.61,0.000189,2]
[423236565,1779970241000,-500.0,0.00019178,2]
[423236553,1779970241000,-500.0,0.00019178,2]
[423236539,1779970241000,-500.0,0.00019178,2]
[423236542,1779970241000,-500.0,0.00019178,2]
[423236536,1779970241000,-500.0,0.00019178,2]
[423236513,1779970241000,-150.0,0.00019,2]
[423236512,1779970241000,-157.35,0.00019,2]
[423236522,1779970241000,-150.0,0.00019178,2]
[423236514,1779970241000,-2500.0,0.00019,2]
[423236517,1779970241000,-4609.0,0.00019001,2]
[423236523,1779970241000,-150.0,0.00019178,2]
[423236519,1779970241000,-1150.93660727,0.000191,2]
[423236515,1779970241000,-163.12506766,0.00019,2]
[423236520,1779970241000,-615.0,0.0001915,2]
[423236538,1779970241000,-500.0,0.00019178,2]
[423236521,1779970241000,-150.0,0.00019178,2]
[423236516,1779970241000,-45853.76252045,0.00019,2]
[423236525,1779970241000,-250.0,0.00019178,2]
[423236518,1779970241000,-476.62,0.00019056,2]
[423236526,1779970241000,-250.0,0.00019178,2]
[423236541,1779970241000,-500.0,0.00019178,2]
[423236524,1779970241000,-210.92564094,0.00019178,2]
[423236532,1779970241000,-500.0,0.00019178,2]
[423236534,1779970241000,-500.0,0.00019178,2]
[423236531,1779970241000,-500.0,0.00019178,2]
[423236535,1779970241000,-500.0,0.00019178,2]
[423236533,1779970241000,-500.0,0.00019178,2]
[423236528,1779970241000,-264.18629754,0.00019178,2]
[423236527,1779970241000,-250.0,0.00019178,2]
[423236530,1779970241000,-500.0,0.00019178,2]
[423236529,1779970241000,-3000.0,0.00019178,2]
[423236605,1779970242000,-525.0,0.00019699,2]
[423236598,1779970242000,-150.0,0.00019699,2]
[423236601,1779970242000,-150.458,0.00019699,2]
[423236600,1779970242000,-150.0,0.00019699,2]
[423236592,1779970242000,-150.0,0.00019699,2]
[423236599,1779970242000,-167.235,0.00019699,2]
[423236602,1779970242000,-1356.0,0.00019699,2]
[423236593,1779970242000,-150.549,0.00019699,2]
[423236594,1779970242000,-289.487,0.00019699,2]
[423236604,1779970242000,-3549.0,0.00019699,2]
[423236614,1779970242000,-389.0,0.0002,2]
[423236617,1779970242000,-171.0,0.0002,2]
[423236609,1779970242000,-199.29868437,0.0002,2]
[423236606,1779970242000,-1412.213,0.00019699,2]
[423236607,1779970242000,-1150.93660727,0.000197,2]
[423236608,1779970242000,-615.0,0.00019835,2]
[423236613,1779970242000,-400.0,0.0002,2]
[423236610,1779970242000,-6607.86400871,0.0002,2]
[423236612,1779970242000,-6185.80955307,0.0002,2]
[423236611,1779970242000,-2000.0,0.0002,2]
[423236616,1779970242000,-183.22139874,0.0002,7]
[423236615,1779970242000,-2000.0,0.0002,2]
[423236620,1779970242000,-500.0,0.0002,2]
[423236597,1779970242000,-150.359,0.00019699,2]
[423236603,1779970242000,-928.0,0.00019699,2]
[423236595,1779970242000,-150.133,0.00019699,2]
[423236566,1779970242000,-500.0,0.00019178,2]
[423236589,1779970242000,-2000.0,0.00019618,2]
[423236570,1779970242000,-500.0,0.00019178,2]
[423236571,1779970242000,-500.0,0.00019178,2]
[423236572,1779970242000,-500.0,0.00019178,2]
[423236573,1779970242000,-500.0,0.00019178,2]
[423236567,1779970242000,-500.0,0.00019178,2]
[423236569,1779970242000,-500.0,0.00019178,2]
[423236574,1779970242000,-500.0,0.00019178,2]
[423236568,1779970242000,-500.0,0.00019178,2]
[423236575,1779970242000,-500.0,0.00019178,2]
[423236579,1779970242000,-500.0,0.00019178,2]
[423236578,1779970242000,-500.0,0.00019178,2]
[423236596,1779970242000,-150.0,0.00019699,2]
[423236576,1779970242000,-500.0,0.00019178,2]
[423236580,1779970242000,-500.0,0.00019178,2]
[423236583,1779970242000,-164.65220892,0.00019178,2]
[423236581,1779970242000,-500.0,0.00019178,2]
[423236582,1779970242000,-500.0,0.00019178,2]
[423236584,1779970242000,-20428.09,0.00019178,2]
[423236586,1779970242000,-1225.0,0.00019376,2]
[423236585,1779970242000,-1150.93660727,0.000193,2]
[423236587,1779970242000,-1150.93660727,0.000195,2]
[423236591,1779970242000,-250.0,0.00019699,2]
[423236590,1779970242000,-2129.0,0.00019669,2]
[423236588,1779970242000,-181.23,0.00019618,2]
[423236577,1779970242000,-500.0,0.00019178,2]
[423236619,1779970242000,-418.0,0.0002,2]
[423236644,1779970242000,-151.0,0.00020172,2]
[423236623,1779970242000,-1376.0,0.0002,2]
[423236655,1779970242000,-151.0,0.00020172,2]
[423236656,1779970242000,-151.0,0.00020172,2]
[423236654,1779970242000,-500.0,0.00020172,2]
[423236657,1779970242000,-500.0,0.00020172,2]
[423236658,1779970242000,-151.0,0.00020172,2]
[423236660,1779970242000,-500.0,0.00020172,2]
[423236662,1779970242000,-151.0,0.00020172,2]
[423236670,1779970242000,-151.0,0.00020172,2]
[423236664,1779970242000,-151.0,0.00020172,2]
[423236661,1779970242000,-151.0,0.00020172,2]
[423236671,1779970242000,-500.0,0.00020172,2]
[423236653,1779970242000,-151.0,0.00020172,2]
[423236663,1779970242000,-500.0,0.00020172,2]
[423236669,1779970242000,-151.0,0.00020172,2]
[423236667,1779970242000,-500.0,0.00020172,2]
[423236672,1779970242000,-151.0,0.00020172,2]
[423236674,1779970242000,-500.0,0.00020172,2]
[423236673,1779970242000,-151.0,0.00020172,2]
[423236675,1779970242000,-151.0,0.00020172,2]
[423236678,1779970242000,-151.0,0.00020172,2]
[423236676,1779970242000,-151.0,0.00020172,2]
[423236680,1779970242000,-500.0,0.00020172,2]
[423236679,1779970242000,-151.0,0.00020172,2]
[423236618,1779970242000,-1079.0,0.0002,2]
[423236665,1779970242000,-151.0,0.00020172,2]
[423236651,1779970242000,-2080.17592889,0.00020172,2]
[423236677,1779970242000,-500.0,0.00020172,2]
[423236650,1779970242000,-151.0,0.00020172,2]
[423236634,1779970242000,-5903.0,0.0002,2]
[423236652,1779970242000,-151.0,0.00020172,2]
[423236622,1779970242000,-613.04222186,0.0002,2]
[423236633,1779970242000,-2013.9,0.0002,2]
[423236625,1779970242000,-200.0,0.0002,10]
[423236628,1779970242000,-156.0,0.0002,2]
[423236627,1779970242000,-1953.0,0.0002,2]
[423236629,1779970242000,-151.0,0.0002,2]
[423236632,1779970242000,-158.8477614,0.0002,2]
[423236630,1779970242000,-1085.0,0.0002,2]
[423236631,1779970242000,-660.0,0.0002,2]
[423236636,1779970242000,-2000.0,0.0002001,2]
[423236635,1779970242000,-169.0,0.0002,2]
[423236640,1779970242000,-151.0,0.00020172,2]
[423236638,1779970242000,-2881.803606,0.0002003,2]
[423236649,1779970242000,-151.0,0.00020172,2]
[423236659,1779970242000,-151.0,0.00020172,2]
[423236645,1779970242000,-151.0,0.00020172,2]
[423236642,1779970242000,-151.0,0.00020172,2]
[423236646,1779970242000,-151.0,0.00020172,2]
[423236643,1779970242000,-151.0,0.00020172,2]
[423236637,1779970242000,-2000.0,0.0002002,2]
[423236647,1779970242000,-151.0,0.00020172,2]
[423236639,1779970242000,-300.0,0.000201,10]
[423236641,1779970242000,-151.0,0.00020172,2]
[423236648,1779970242000,-151.0,0.00020172,2]
[423236714,1779970243000,-389.0,0.00021,2]
[423236717,1779970243000,-418.0,0.00021,2]
[423236716,1779970243000,-1079.0,0.00021,2]
[423236721,1779970243000,-1085.0,0.00021,2]
[423236719,1779970243000,-156.0,0.00021,2]
[423236718,1779970243000,-1376.0,0.00021,2]
[423236720,1779970243000,-151.0,0.00021,2]
[423236723,1779970243000,-615.0,0.00021205,2]
[423236722,1779970243000,-169.0,0.00021,2]
[423236729,1779970243000,-693.39197629,0.00021358,2]
[423236725,1779970243000,-2236.95670847,0.00021268,2]
[423236726,1779970243000,-245.61,0.000213,2]
[423236728,1779970243000,-3081.0,0.0002133,2]
[423236727,1779970243000,-500.0,0.00021324,2]
[423236731,1779970243000,-152.0,0.00021358,2]
[423236730,1779970243000,-151.0,0.00021358,2]
[423236734,1779970243000,-152.0,0.00021358,2]
[423236712,1779970243000,-7940.72831479,0.00021,2]
[423236732,1779970243000,-152.0,0.00021358,2]
[423236724,1779970243000,-476.71,0.0002122,2]
[423236709,1779970243000,-5228.0,0.00020901,2]
[423236699,1779970243000,-150.0,0.0002058,2]
[423236713,1779970243000,-150.0,0.00021,2]
[423236733,1779970243000,-152.0,0.00021358,2]
[423236684,1779970243000,-500.0,0.00020172,2]
[423236685,1779970243000,-3085.7,0.00020381,2]
[423236683,1779970243000,-500.0,0.00020172,2]
[423236682,1779970243000,-151.0,0.00020172,2]
[423236681,1779970243000,-151.0,0.00020172,2]
[423236687,1779970243000,-1603.98556144,0.00020424,2]
[423236689,1779970243000,-615.0,0.0002052,2]
[423236691,1779970243000,-4107.09,0.00020548,2]
[423236711,1779970243000,-6111.0,0.00021,2]
[423236695,1779970243000,-150.0,0.0002058,2]
[423236701,1779970243000,-150.0,0.0002058,2]
[423236703,1779970243000,-150.0,0.0002058,2]
[423236696,1779970243000,-150.0,0.0002058,2]
[423236693,1779970243000,-2850.44,0.00020548,2]
[423236707,1779970243000,-2157.14243826,0.0002072,2]
[423236706,1779970243000,-168.1,0.00020639,2]
[423236708,1779970243000,-150.0,0.000209,2]
[423236710,1779970243000,-15000.0,0.00021,2]
[423236715,1779970243000,-171.0,0.00021,2]
[423236705,1779970243000,-150.0,0.0002058,2]
[423236735,1779970243000,-152.0,0.00021358,2]
[423236752,1779970243000,-289.00262903,0.00021578,2]
[423236736,1779970243000,-152.0,0.00021358,2]
[423236759,1779970243000,-927.27566594,0.00021798,2]
[423236761,1779970243000,-961.58486558,0.00021853,2]
[423236762,1779970243000,-615.0,0.0002189,2]
[423236763,1779970243000,-997.16350561,0.00021908,2]
[423236767,1779970243000,-360985.08297501,0.00022,4]
[423236768,1779970243000,-450.0,0.00022,2]
[423236769,1779970243000,-389.0,0.00022,2]
[423236770,1779970243000,-171.0,0.00022,2]
[423236771,1779970243000,-1079.0,0.00022,2]
[423236764,1779970243000,-5000.0,0.00021918,2]
[423236772,1779970243000,-418.0,0.00022,2]
[423236737,1779970243000,-152.0,0.00021358,2]
[423236776,1779970243000,-1085.0,0.00022,2]
[423236777,1779970243000,-169.0,0.00022,2]
[423236775,1779970243000,-151.0,0.00022,2]
[423236778,1779970243000,-476.71,0.00022105,2]
[423236779,1779970243000,-476.76,0.00022281,2]
[423236780,1779970243000,-3085.7,0.00022353,2]
[423236781,1779970243000,-2405.55389863,0.00022364,2]